fUSD/lending_fUSD_20260630
["ID","MTS","AMOUNT","RATE_DAILY","PERIOD"]
[426712939,1782757843000,-437.21396586,0.00024886,2]
[426712935,1782757843000,-194.78,0.00024658,2]
[426712938,1782757843000,-216.58458871,0.000247,7]
[426712936,1782757843000,-393.0891669,0.00024667,2]
[426712941,1782757843000,-150.34148829,0.00024886,2]
[426712948,1782757843000,-410.0957593,0.00024947,2]
[426712954,1782757843000,-151.83365069,0.00024967,2]
[426712950,1782757843000,-334.57422716,0.00024947,2]
[426712945,1782757843000,-163.07274434,0.00024886,2]
[426712943,1782757843000,-397.26954784,0.00024886,2]
[426712952,1782757843000,-337.20252724,0.00024947,2]
[426712962,1782757843000,-874.0,0.00025,2]
[426712961,1782757843000,-197.0,0.00025,2]
[426712951,1782757843000,-325.27347595,0.00024947,2]
[426712963,1782757843000,-500.0,0.00025068,2]
[426712953,1782757843000,-224.99704836,0.00024947,2]
[426712955,1782757843000,-347.0,0.00025,2]
[426712958,1782757843000,-313.18545398,0.00025,2]
[426712932,1782757843000,-181.89013726,0.00024572,2]
[426712956,1782757843000,-497.0,0.00025,2]
[426712947,1782757843000,-1301.0,0.000249,5]
[426712933,1782757843000,-618.33104595,0.00024584,2]
[426712922,1782757843000,-218.0,0.00024,2]
[426712931,1782757843000,-2089.8,0.00024174,2]
[426712960,1782757843000,-985.0,0.00025,2]
[426712912,1782757843000,-167.28711358,0.00023688,2]
[426712901,1782757843000,-859.0,0.00023,2]
[426712908,1782757843000,-169.54842074,0.00023629,2]
[426712911,1782757843000,-204.83141115,0.00023688,2]
[426712909,1782757843000,-224.9131977,0.00023629,2]
[426712910,1782757843000,-205.04787965,0.00023688,2]
[426712903,1782757843000,-370.81,0.00023135,7]
[426712907,1782757843000,-198.63477392,0.00023629,2]
[426712906,1782757843000,-218.60698293,0.00023629,2]
[426712904,1782757843000,-618.33104595,0.00023488,2]
[426712905,1782757843000,-209.6995063,0.00023629,2]
[426712937,1782757843000,-6423.53263037,0.00024698,7]
[426712913,1782757843000,-162.63673797,0.00023688,2]
[426712916,1782757843000,-333.0,0.00024,2]
[426712918,1782757843000,-497.0,0.00024,2]
[426712924,1782757843000,-976.0,0.00024,2]
[426712920,1782757843000,-840.0,0.00024,2]
[426712925,1782757843000,-197.0,0.00024,2]
[426712917,1782757843000,-170.0,0.00024,2]
[426712926,1782757843000,-150.0,0.00024,2]
[426712921,1782757843000,-303.0,0.00024,2]
[426712928,1782757843000,-618.33104595,0.00024036,2]
[426712927,1782757843000,-859.0,0.00024,2]
[426712930,1782757843000,-7929.91,0.00024174,2]
[426712929,1782757843000,-1783.88925227,0.00024078,2]
[426712915,1782757843000,-168.60126362,0.00023688,2]
[426712957,1782757843000,-856.52015423,0.00025,2]
[426713021,1782757843000,-544.77517927,0.00026282,2]
[426712964,1782757843000,-206.0,0.00025073,2]
[426712996,1782757843000,-314.72667548,0.00025786,2]
[426712997,1782757843000,-505.80379086,0.00025786,2]
[426712999,1782757843000,-5528.0,0.000258,3]
[426713001,1782757843000,-150.0,0.00026069,5]
[426713004,1782757843000,-151.83365069,0.00026247,2]
[426713005,1782757843000,-384.74130172,0.00026273,2]
[426713009,1782757843000,-323.69948023,0.00026273,2]
[426713008,1782757843000,-447.97621287,0.00026273,2]
[426713010,1782757843000,-349.27493918,0.00026273,2]
[426713003,1782757843000,-618.33104613,0.00026228,2]
[426713002,1782757843000,-222.8282914,0.00026182,2]
[426713007,1782757843000,-390.08311853,0.00026273,2]
[426712994,1782757843000,-501.86134074,0.00025786,2]
[426713000,1782757843000,-1783.88925227,0.00026033,2]
[426713022,1782757843000,-794.53909568,0.00026282,2]
[426713012,1782757843000,-838.79802521,0.00026282,2]
[426713011,1782757843000,-247.90935165,0.00026282,2]
[426713014,1782757843000,-328.34790003,0.00026282,2]
[426713015,1782757843000,-186.78886746,0.00026282,2]
[426713013,1782757843000,-216.25294068,0.00026282,2]
[426713017,1782757843000,-874.42793173,0.00026282,2]
[426713020,1782757843000,-572.8950457,0.00026282,2]
[426713016,1782757843000,-220.38524992,0.00026282,2]
[426712959,1782757843000,-218.0,0.00025,2]
[426713019,1782757843000,-451.02446488,0.00026282,2]
[426713023,1782757843000,-678.19368296,0.00026282,2]
[426713006,1782757843000,-419.01647015,0.00026273,2]
[426712998,1782757843000,-449.99409671,0.00025786,2]
[426713018,1782757843000,-603.62854806,0.00026282,2]
[426712990,1782757843000,-160.76179766,0.00025786,2]
[426712995,1782757843000,-487.91021392,0.00025786,2]
[426712969,1782757843000,-8691.2595,0.00025198,14]
[426712967,1782757843000,-70773.0,0.000251,2]
[426712973,1782757843000,-505.53,0.00025675,7]
[426712965,1782757843000,-319.92072875,0.000251,2]
[426712972,1782757843000,-500.0,0.00025675,7]
[426712968,1782757843000,-618.33104595,0.00025132,2]
[426712974,1782757843000,-618.33104595,0.0002568,2]
[426712971,1782757843000,-151.83365069,0.00025607,2]
[426712970,1782757843000,-200.0,0.00025541,2]
[426712976,1782757843000,-223.98810643,0.00025715,2]
[426712985,1782757843000,-272.38758963,0.00025724,2]
[426712987,1782757843000,-674.7395931,0.00025724,2]
[426712966,1782757843000,-304.0,0.000251,7]
[426712975,1782757843000,-2665.13987792,0.000257,2]
[426712986,1782757843000,-595.90432176,0.00025724,2]
[426712991,1782757843000,-615.14363895,0.00025786,2]
[426712989,1782757843000,-420.6081388,0.00025786,2]
[426712980,1782757843000,-199.28484988,0.00025724,2]
[426712981,1782757843000,-655.8209488,0.00025724,2]
[426712992,1782757843000,-243.0856253,0.00025786,2]
[426712979,1782757843000,-164.17395002,0.00025724,2]
[426712977,1782757843000,-161.84974012,0.00025715,2]
[426712984,1782757843000,-300.68297659,0.00025724,2]
[426712993,1782757843000,-614.49423344,0.00025786,2]
[426712988,1782757843000,-326.14548868,0.00025724,2]
[426712983,1782757843000,-402.41903204,0.00025724,2]
[426712978,1782757843000,-221.01154747,0.00025724,2]
[426713058,1782757844000,-150.0,0.00027222,7]
[426713074,1782757844000,-194.78,0.00027397,2]
[426713057,1782757844000,-150.0,0.00027222,7]
[426713050,1782757844000,-500.0,0.00026799,2]
[426713055,1782757844000,-151.83365069,0.00026887,2]
[426713053,1782757844000,-776.19746785,0.00026841,2]
[426713056,1782757844000,-500.0,0.00027137,2]
[426713063,1782757844000,-150.0,0.00027222,7]
[426713065,1782757844000,-587.0,0.0002727,2]
[426713060,1782757844000,-150.0,0.00027222,7]
[426713054,1782757844000,-754.58823506,0.00026841,2]
[426713068,1782757844000,-822.0,0.00027271,2]
[426713073,1782757844000,-1026.86,0.00027397,2]
[426713064,1782757844000,-234.0,0.0002727,2]
[426713070,1782757844000,-217.29487444,0.00027397,7]
[426713072,1782757844000,-300.0,0.00027397,2]
[426713071,1782757844000,-1500.0,0.00027397,2]
[426713061,1782757844000,-150.0,0.00027222,7]
[426713069,1782757844000,-500.0,0.00027396,2]
[426713075,1782757844000,-3098.76,0.00027397,2]
[426713086,1782757844000,-548.90028963,0.00027397,2]
[426713085,1782757844000,-274.45014482,0.00027397,2]
[426713052,1782757844000,-944.55198801,0.00026841,2]
[426713067,1782757844000,-164.0,0.00027271,2]
[426713049,1782757844000,-500.0,0.00026799,2]
[426713038,1782757844000,-385.70038307,0.00026346,2]
[426713051,1782757844000,-181.89013726,0.000268,2]
[426713027,1782757844000,-321.52359531,0.00026346,2]
[426713025,1782757844000,-489.21823302,0.00026282,2]
[426713024,1782757844000,-899.6527908,0.00026282,2]
[426713026,1782757844000,-630.9122082,0.00026346,2]
[426713032,1782757844000,-247.67919306,0.00026346,2]
[426713028,1782757844000,-820.1915186,0.00026346,2]
[426713031,1782757844000,-356.58879526,0.00026346,2]
[426713030,1782757844000,-420.87132587,0.00026346,2]
[426713029,1782757844000,-396.55477661,0.00026346,2]
[426713035,1782757844000,-650.54695189,0.00026346,2]
[426713033,1782757844000,-819.32564459,0.00026346,2]
[426713048,1782757844000,-500.0,0.00026799,2]
[426713034,1782757844000,-669.14845433,0.00026346,2]
[426713039,1782757844000,-674.99114507,0.00026346,2]
[426713037,1782757844000,-674.40505448,0.00026346,2]
[426713043,1782757844000,-5528.0,0.000265,5]
[426713041,1782757844000,-447.33328725,0.00026346,2]
[426713040,1782757844000,-410.33339376,0.00026346,2]
[426713045,1782757844000,-500.0,0.00026799,2]
[426713044,1782757844000,-231.0,0.00026521,2]
[426713047,1782757844000,-500.0,0.00026799,2]
[426713042,1782757844000,-393.0891669,0.00026411,2]
[426713046,1782757844000,-500.0,0.00026799,2]
[426713059,1782757844000,-150.0,0.00027222,7]
[426713036,1782757844000,-472.09001322,0.00026346,2]
[426713078,1782757844000,-3384.44,0.00027397,10]
[426713062,1782757844000,-150.0,0.00027222,7]
[426713076,1782757844000,-1476.29,0.00027397,2]
[426713108,1782757844000,-496.72,0.00028348,30]
[426713110,1782757844000,-162.39,0.00028381,30]
[426713109,1782757844000,-163.13,0.00028376,30]
[426713113,1782757844000,-163.13,0.00028427,2]
[426713118,1782757844000,-513.33,0.00028514,7]
[426713114,1782757844000,-162.39,0.00028431,2]
[426713119,1782757844000,-514.37,0.00028518,7]
[426713115,1782757844000,-820.61614081,0.0002844,2]
[426713117,1782757844000,-162.39,0.00028481,7]
[426713116,1782757844000,-163.13,0.00028477,7]
[426713122,1782757844000,-401.58,0.0002854,7]
[426713107,1782757844000,-406.48,0.00028345,30]
[426713121,1782757844000,-162.39,0.00028531,30]
[426713125,1782757844000,-496.72,0.00028546,7]
[426713124,1782757844000,-406.48,0.00028544,7]
[426713127,1782757844000,-162.39,0.00028581,2]
[426713126,1782757844000,-163.13,0.00028578,2]
[426713128,1782757844000,-153.0,0.00028616,30]
[426713130,1782757844000,-158.0,0.00028621,30]
[426713129,1782757844000,-333.0,0.00028616,30]
[426713131,1782757844000,-497.0,0.00028621,30]
[426713132,1782757844000,-840.0,0.00028621,30]
[426713133,1782757844000,-303.0,0.00028621,30]
[426713077,1782757844000,-4061.33,0.00027397,10]
[426713120,1782757844000,-163.13,0.00028527,30]
[426713106,1782757844000,-502.55,0.00028345,30]
[426713123,1782757844000,-502.55,0.00028544,7]
[426713103,1782757844000,-163.13,0.00028326,7]
[426713111,1782757844000,-936.71,0.000284,7]
[426713083,1782757844000,-532.02515548,0.00027397,2]
[426713084,1782757844000,-709.36687398,0.00027397,2]
[426713081,1782757844000,-177.34171849,0.00027397,2]
[426713079,1782757844000,-155.93639075,0.00027397,2]
[426713082,1782757844000,-354.68343699,0.00027397,2]
[426713080,1782757844000,-311.8727815,0.00027397,2]
[426713087,1782757844000,-936.71,0.000274,7]
[426713099,1782757844000,-163.13,0.00028276,2]
[426713098,1782757844000,-151.83365069,0.00028167,2]
[426713089,1782757844000,-161.19607867,0.000274,2]
[426713091,1782757844000,-151.83365069,0.00027527,2]
[426713100,1782757844000,-162.39,0.00028281,2]
[426713088,1782757844000,-1327.21,0.000274,7]
[426713093,1782757844000,-905.50588207,0.00027679,2]
[426713105,1782757844000,-401.58,0.00028341,30]
[426713104,1782757844000,-162.39,0.00028331,7]
[426713112,1782757844000,-1327.21,0.000284,7]
[426713102,1782757844000,-514.37,0.00028316,30]
[426713097,1782757844000,-393.0891669,0.00028156,2]
[426713101,1782757844000,-513.33,0.00028312,30]
[426713095,1782757844000,-1783.88925227,0.00027989,2]
[426713094,1782757844000,-822.0,0.00027956,10]
[426713096,1782757844000,-234.0,0.00028092,10]
[426713090,1782757844000,-500.0,0.000275,7]
[426713092,1782757844000,-931.43696142,0.00027679,2]
[426713183,1782757845000,-10000.0,0.00029,2]
[426713176,1782757845000,-401.58,0.00028939,30]
[426713173,1782757845000,-611.0,0.00028932,2]
[426713175,1782757845000,-162.39,0.00028932,7]
[426713171,1782757845000,-350.0,0.00028924,2]
[426713168,1782757845000,-350.0,0.00028891,2]
[426713170,1782757845000,-514.37,0.00028922,30]
[426713165,1782757845000,-162.39,0.00028832,30]
[426713166,1782757845000,-163.13,0.0002888,2]
[426713164,1782757845000,-175.733,0.00028832,21]
[426713182,1782757845000,-162.39,0.00028982,30]
[426713172,1782757845000,-163.13,0.0002893,7]
[426713179,1782757845000,-496.72,0.00028944,30]
[426713188,1782757845000,-162.39,0.00029032,2]
[426713177,1782757845000,-502.55,0.00028942,30]
[426713174,1782757845000,-229.0,0.00028932,2]
[426713180,1782757845000,-700.0,0.00028979,2]
[426713178,1782757845000,-406.48,0.00028942,30]
[426713196,1782757845000,-162.39,0.00029132,30]
[426713184,1782757845000,-10000.0,0.00029,2]
[426713185,1782757845000,-174.78,0.00029,10]
[426713195,1782757845000,-163.13,0.00029132,30]
[426713187,1782757845000,-163.13,0.00029031,2]
[426713186,1782757845000,-239.84552264,0.00029,2]
[426713194,1782757845000,-514.37,0.00029125,7]
[426713163,1782757845000,-2558.917,0.00028832,21]
[426713181,1782757845000,-163.13,0.00028981,30]
[426713162,1782757845000,-163.13,0.00028829,30]
[426713135,1782757845000,-976.0,0.00028621,30]
[426713158,1782757845000,-163.13,0.00028779,7]
[426713134,1782757845000,-218.0,0.00028621,30]
[426713192,1782757845000,-1327.21,0.000291,7]
[426713139,1782757845000,-163.13,0.00028628,7]
[426713136,1782757845000,-157.0,0.00028621,30]
[426713138,1782757845000,-859.0,0.00028621,30]
[426713137,1782757845000,-197.0,0.00028621,30]
[426713142,1782757845000,-184.56,0.0002863,2]
[426713143,1782757845000,-162.39,0.00028631,7]
[426713140,1782757845000,-900.0,0.0002863,2]
[426713141,1782757845000,-2000.0,0.0002863,2]
[426713144,1782757845000,-164.973955,0.00028641,10]
[426713146,1782757845000,-163.13,0.00028678,30]
[426713145,1782757845000,-707.700055,0.00028641,10]
[426713149,1782757845000,-513.33,0.00028717,2]
[426713152,1782757845000,-162.39,0.00028731,2]
[426713148,1782757845000,-319.92072875,0.000287,2]
[426713154,1782757845000,-401.58,0.0002874,2]
[426713147,1782757845000,-162.39,0.00028681,30]
[426713155,1782757845000,-502.55,0.00028743,2]
[426713157,1782757845000,-496.72,0.00028745,2]
[426713150,1782757845000,-514.37,0.0002872,2]
[426713156,1782757845000,-406.48,0.00028743,2]
[426713151,1782757845000,-163.13,0.00028729,2]
[426713153,1782757845000,-223.54524298,0.00028732,5]
[426713169,1782757845000,-513.33,0.0002892,30]
[426713159,1782757845000,-162.39,0.00028781,7]
[426713161,1782757845000,-151.83365069,0.00028808,2]
[426713167,1782757845000,-162.39,0.00028882,2]
[426713190,1782757845000,-162.39,0.00029082,7]
[426713160,1782757845000,-241.36177891,0.00028807,2]
[426713193,1782757845000,-513.33,0.00029123,7]
[426713231,1782757845000,-191132.6291283,0.00029636,2]
[426713228,1782757845000,-500.0,0.00029635,2]
[426713229,1782757845000,-531157.31862062,0.00029636,2]
[426713222,1782757845000,-157.0,0.00029621,30]
[426713226,1782757845000,-500.0,0.00029635,2]
[426713233,1782757845000,-1427.82,0.000297,7]
[426713232,1782757845000,-580.9162384,0.00029636,2]
[426713235,1782757845000,-3549.0,0.000297,2]
[426713234,1782757845000,-447.92,0.000297,7]
[426713240,1782757845000,-2010.0,0.000298,2]
[426713239,1782757845000,-200.0,0.00029759,2]
[426713242,1782757845000,-2000.0,0.00029899,7]
[426713238,1782757845000,-2000.0,0.00029753,7]
[426713237,1782757845000,-180.007094,0.00029738,2]
[426713236,1782757845000,-512.05,0.000297,7]
[426713241,1782757845000,-1000.0,0.00029832,5]
[426713244,1782757845000,-1327.21,0.000299,7]
[426713246,1782757845000,-393.0891669,0.000299,2]
[426713248,1782757845000,-245.16032166,0.000299,2]
[426713252,1782757845000,-245.16032166,0.000299,2]
[426713250,1782757845000,-245.16032166,0.000299,2]
[426713251,1782757845000,-245.16032166,0.000299,2]
[426713247,1782757845000,-245.16032166,0.000299,2]
[426713254,1782757845000,-245.16032166,0.000299,2]
[426713249,1782757845000,-245.16032166,0.000299,2]
[426713245,1782757845000,-245.16032182,0.000299,2]
[426713189,1782757845000,-163.13,0.00029081,7]
[426713253,1782757845000,-245.16032166,0.000299,2]
[426713230,1782757845000,-72967.1784315,0.00029636,2]
[426713243,1782757845000,-936.71,0.000299,7]
[426713227,1782757845000,-500.0,0.00029635,2]
[426713191,1782757845000,-936.71,0.000291,7]
[426713197,1782757845000,-401.58,0.00029139,7]
[426713200,1782757845000,-496.72,0.00029143,7]
[426713199,1782757845000,-406.48,0.00029141,7]
[426713203,1782757845000,-163.16,0.00029232,7]
[426713204,1782757845000,-162.5,0.00029232,7]
[426713224,1782757845000,-859.0,0.00029621,30]
[426713201,1782757845000,-163.13,0.00029182,2]
[426713198,1782757845000,-502.55,0.00029141,7]
[426713206,1782757845000,-350.0,0.00029363,13]
[426713207,1782757845000,-151.83365069,0.00029448,2]
[426713205,1782757845000,-495.01950852,0.0002925,2]
[426713209,1782757845000,-405.0,0.00029535,2]
[426713220,1782757845000,-218.0,0.00029621,30]
[426713202,1782757845000,-162.39,0.00029182,2]
[426713208,1782757845000,-150.0,0.00029534,2]
[426713219,1782757845000,-303.0,0.00029621,30]
[426713223,1782757845000,-197.0,0.00029621,30]
[426713221,1782757845000,-976.0,0.00029621,30]
[426713218,1782757845000,-840.0,0.00029621,30]
[426713212,1782757845000,-500.0,0.00029604,2]
[426713217,1782757845000,-497.0,0.00029621,30]
[426713214,1782757845000,-153.0,0.00029616,30]
[426713213,1782757845000,-454184.0629738,0.00029605,2]
[426713210,1782757845000,-1793.0,0.00029565,2]
[426713216,1782757845000,-158.0,0.00029621,30]
[426713211,1782757845000,-500.0,0.00029604,2]
[426713215,1782757845000,-333.0,0.00029616,30]
[426713225,1782757845000,-500.0,0.00029635,5]
[426713276,1782757846000,-2165.17275824,0.0003,10]
[426713266,1782757846000,-1783.88925227,0.00029944,2]
[426713270,1782757846000,-199.40771083,0.00029999,2]
[426713268,1782757846000,-2000.0,0.00029998,15]
[426713264,1782757846000,-245.16032166,0.000299,2]
[426713265,1782757846000,-245.16032166,0.000299,2]
[426713263,1782757846000,-245.16032166,0.000299,2]
[426713259,1782757846000,-245.16032166,0.000299,2]
[426713261,1782757846000,-245.16032166,0.000299,2]
[426713258,1782757846000,-245.16032166,0.000299,2]
[426713267,1782757846000,-2000.0,0.00029998,2]
[426713256,1782757846000,-245.16032166,0.000299,2]
[426713257,1782757846000,-245.16032166,0.000299,2]
[426713255,1782757846000,-245.16032166,0.000299,2]
[426713273,1782757846000,-23155.55359674,0.0003,10]
[426713260,1782757846000,-245.16032166,0.000299,2]
[426713274,1782757846000,-10000.0,0.0003,2]
[426713262,1782757846000,-245.16032166,0.000299,2]
[426713279,1782757846000,-17605.66,0.0003,2]
[426713302,1782757846000,-798.28369769,0.0003,2]
[426713290,1782757846000,-12952.03704698,0.0003,2]
[426713271,1782757846000,-2000.0,0.00029999,10]
[426713285,1782757846000,-1199.31,0.0003,2]
[426713288,1782757846000,-12500.0,0.0003,2]
[426713287,1782757846000,-22500.0,0.0003,2]
[426713286,1782757846000,-14351.57,0.0003,2]
[426713283,1782757846000,-489.6469237,0.0003,2]
[426713289,1782757846000,-2191.36,0.0003,2]
[426713282,1782757846000,-12500.0,0.0003,2]
[426713280,1782757846000,-12500.0,0.0003,2]
[426713281,1782757846000,-9999.84,0.0003,2]
[426713278,1782757846000,-800.0,0.0003,2]
[426713277,1782757846000,-301.51095363,0.0003,12]
[426713269,1782757846000,-1080.90492825,0.00029999,15]
[426713272,1782757846000,-500.0,0.00029999,2]
[426713275,1782757846000,-4505.37344055,0.0003,3]
[426713284,1782757846000,-200.0,0.0003,2]
[426713306,1782757848000,-41.03447808,0.00013425,2]
[426713308,1782757848000,-1680.35579814,0.00027397,10]
[426713307,1782757848000,-109.96552192,0.00013425,2]
[426713310,1782757848000,-369.98579814,0.0003,2]
[426713313,1782757848000,-110.0,0.0002832,30]
[426713311,1782757848000,-931.64063632,0.0003,2]
[426713312,1782757848000,-890.0,0.00018687,2]
[426713314,1782757848000,-407.04,0.0002832,30]
[426713315,1782757848000,-48.96,0.00028348,30]
[426713309,1782757848000,-1140.01420186,0.00027397,10]
[426713316,1782757855000,152.65112834,0.0003,120]
[426713317,1782757867000,-2500.0,0.000142,2]
[426713318,1782757867000,-909.0,0.000142,2]
[426713321,1782757867000,-895.0,0.000142,2]
[426713320,1782757867000,-153.0,0.000142,2]
[426713319,1782757867000,-160.0,0.000142,2]
[426713322,1782757900000,-10000.0,0.00013425,2]
[426713323,1782757901000,1080.90492825,0.00013424,3]
[426713325,1782757956000,-3203.15418871,0.00013425,2]
[426713326,1782757969000,-3203.15418871,0.00012683,2]
[426713327,1782757982000,-4315.39883849,0.00012683,2]
[426713328,1782757995000,-150.0,0.00012682,2]
[426713330,1782758048000,-913.53059035,0.0001243,2]
[426713331,1782758049000,1390.695742,7.945e-05,2]
[426713332,1782758114000,-1845.38640965,0.0001243,2]
[426713333,1782758123000,151.0,0.00029635,120]
[426713334,1782758167000,-175.733,0.0001243,2]
[426713335,1782758221000,-212.33245549,0.00012583,2]
[426713336,1782758274000,-151.0,0.00012583,2]
[426713338,1782758295000,6984.67,0.00030137,120]
[426713350,1782758387000,-487.0,0.00037237,120]
[426713351,1782758387000,-487.0,0.00037237,120]
[426713352,1782758387000,-487.0,0.00037237,120]
[426713355,1782758387000,-487.0,0.00037237,120]
[426713347,1782758387000,-487.0,0.00037237,120]
[426713349,1782758387000,-487.0,0.00037237,120]
[426713348,1782758387000,-487.0,0.00037237,120]
[426713340,1782758387000,-487.0,0.00037237,120]
[426713345,1782758387000,-487.0,0.00037237,120]
[426713343,1782758387000,-778.26,0.00037237,120]
[426713344,1782758387000,-487.0,0.00037237,120]
[426713342,1782758387000,-487.0,0.00037237,120]
[426713341,1782758387000,-487.0,0.00037237,120]
[426713339,1782758387000,-487.0,0.00037237,120]
[426713346,1782758387000,-487.0,0.00037237,120]
[426713353,1782758387000,-487.0,0.00037237,120]
[426713369,1782758387000,-487.0,0.00037237,120]
[426713356,1782758387000,-487.0,0.00037237,120]
[426713354,1782758387000,-487.0,0.00037237,120]
[426713371,1782758387000,-487.0,0.00037237,120]
[426713367,1782758387000,-487.0,0.00037237,120]
[426713370,1782758387000,-487.0,0.00037237,120]
[426713366,1782758387000,-487.0,0.00037237,120]
[426713364,1782758387000,-487.0,0.00037237,120]
[426713365,1782758387000,-487.0,0.00037237,120]
[426713368,1782758387000,-487.0,0.00037237,120]
[426713362,1782758387000,-487.0,0.00037237,120]
[426713361,1782758387000,-487.0,0.00037237,120]
[426713360,1782758387000,-487.0,0.00037237,120]
[426713359,1782758387000,-487.0,0.00037237,120]
[426713358,1782758387000,-487.0,0.00037237,120]
[426713357,1782758387000,-487.0,0.00037237,120]
[426713363,1782758387000,-487.0,0.00037237,120]
[426713382,1782758388000,-500.0,0.00037237,120]
[426713390,1782758388000,-500.0,0.00037237,120]
[426713388,1782758388000,-228.68,0.00037237,120]
[426713387,1782758388000,-500.0,0.00037237,120]
[426713386,1782758388000,-1173.73,0.00037237,120]
[426713384,1782758388000,-500.0,0.00037237,120]
[426713385,1782758388000,-461.05092885,0.00037237,120]
[426713380,1782758388000,-313.322223,0.00037237,120]
[426713372,1782758388000,-487.0,0.00037237,120]
[426713378,1782758388000,-500.0,0.00037237,120]
[426713379,1782758388000,-500.0,0.00037237,120]
[426713376,1782758388000,-487.0,0.00037237,120]
[426713377,1782758388000,-384.56,0.00037237,120]
[426713375,1782758388000,-487.0,0.00037237,120]
[426713374,1782758388000,-487.0,0.00037237,120]
[426713373,1782758388000,-487.0,0.00037237,120]
[426713389,1782758388000,-500.0,0.00037237,120]
[426713381,1782758388000,-500.0,0.00037237,120]
[426713391,1782758388000,-500.0,0.00037237,120]
[426713383,1782758388000,-500.0,0.00037237,120]
[426713394,1782758388000,-714.95,0.00037237,120]
[426713392,1782758388000,-714.95,0.00037237,120]
[426713411,1782758388000,-714.95,0.00037237,120]
[426713409,1782758388000,-487.0,0.00037237,120]
[426713407,1782758388000,-487.0,0.00037237,120]
[426713408,1782758388000,-714.95,0.00037237,120]
[426713406,1782758388000,-714.95,0.00037237,120]
[426713405,1782758388000,-342.51,0.00037237,120]
[426713404,1782758388000,-714.95,0.00037237,120]
[426713403,1782758388000,-500.0,0.00037237,120]
[426713410,1782758388000,-714.95,0.00037237,120]
[426713400,1782758388000,-714.95,0.00037237,120]
[426713412,1782758388000,-487.0,0.00037237,120]
[426713401,1782758388000,-500.0,0.00037237,120]
[426713399,1782758388000,-500.0,0.00037237,120]
[426713397,1782758388000,-714.95,0.00037237,120]
[426713398,1782758388000,-714.95,0.00037237,120]
[426713396,1782758388000,-714.95,0.00037237,120]
[426713393,1782758388000,-500.0,0.00037237,120]
[426713395,1782758388000,-500.0,0.00037237,120]
[426713402,1782758388000,-714.95,0.00037237,120]
[426713422,1782758389000,-487.0,0.00037237,120]
[426713426,1782758389000,-714.95,0.00037237,120]
[426713429,1782758389000,-346.38,0.00037237,120]
[426713427,1782758389000,-487.0,0.00037237,120]
[426713428,1782758389000,-714.95,0.00037237,120]
[426713424,1782758389000,-714.95,0.00037237,120]
[426713425,1782758389000,-487.0,0.00037237,120]
[426713423,1782758389000,-371.27351491,0.00037237,120]
[426713417,1782758389000,-714.95,0.00037237,120]
[426713418,1782758389000,-714.95,0.00037237,120]
[426713420,1782758389000,-714.95,0.00037237,120]
[426713419,1782758389000,-487.0,0.00037237,120]
[426713416,1782758389000,-487.0,0.00037237,120]
[426713415,1782758389000,-714.95,0.00037237,120]
[426713414,1782758389000,-487.0,0.00037237,120]
[426713413,1782758389000,-487.0,0.00037237,120]
[426713431,1782758389000,-714.95,0.00037237,120]